bitfinex/quotes_SOLUSD_20250621
["timestamp","ask_amount","ask_price","bid_price","bid_amount"]
[1750541104357,47.95950217,135.03,135.02,16.62366368]
[1750541104557,10.74,134.89,134.79,4.015]
[1750541105067,20.74,134.89,134.79,4.015]
[1750541105257,10.74,134.89,134.79,4.015]
[1750541105758,10.74,134.89,134.65,10.0]
[1750541105759,8.23384891,134.74,134.65,10.0]
[1750541105961,0.74,134.73,134.65,10.0]
[1750541106162,0.74,134.66,134.65,10.0]
[1750541106369,0.74,134.71,134.65,10.0]
[1750541106665,7.0406995,134.78,134.65,9.5]
[1750541106666,16.91963419,134.78,134.65,9.5]
[1750541106847,37.06998813,134.88,134.68,0.5]
[1750541106848,9.5,134.86,134.68,0.5]
[1750541107044,9.5,134.86,134.65,9.5]
[1750541107045,7.63748838,134.79,134.69,0.5]
[1750541107246,7.63748838,134.79,134.67,0.5]
[1750541107579,7.63748838,134.79,134.65,12.1577932]
[1750541107731,7.63748838,134.79,134.65,15.1782922]
[1750541107732,24.78294975,134.66,134.65,15.1782922]
[1750541107934,14.75378935,134.78,134.65,15.1782922]
[1750541107935,7.4867606,134.71,134.65,15.1782922]
[1750541108148,29.03441884,134.78,134.65,15.1782922]
[1750541108149,23.44883853,134.66,134.65,15.1782922]
[1750541108350,55.71854888,134.66,134.65,15.1782922]
[1750541108548,30.93559913,134.66,134.65,15.1782922]
[1750541108769,9.5,134.63,134.62,6.59047499]
[1750541108985,9.5,134.54,134.51,140.0]
[1750541109483,9.98811698,134.53,134.51,140.0]
[1750541109781,9.98811698,134.53,134.51,76.93304449]
[1750541109782,34.28294975,134.52,134.51,76.93304449]
[1750541109971,34.28294975,134.52,134.51,63.85885885]
[1750541109972,41.58110202,134.52,134.51,63.85885885]
[1750541110171,52.83450434,134.52,134.51,63.85885885]
[1750541110375,52.83450434,134.52,134.51,34.10475954]
[1750541110376,20.75340232,134.52,134.51,34.10475954]
[1750541110582,20.75340232,134.52,134.39,5.00847]
[1750541110583,9.5,134.44,134.39,5.00847]
[1750541110765,24.78294975,134.4,134.39,5.00847]
[1750541111176,11.34733841,134.4,134.39,4.70148]
[1750541111366,70.41323791,134.4,134.39,4.70148]
[1750541111577,70.41323791,134.4,134.35,1.6358595]
[1750541111578,9.5,134.36,134.35,1.6358595]
[1750541111756,4.70147939,134.39,134.35,2.1358595]
[1750541111959,4.70147939,134.39,134.35,1.6358595]
[1750541112182,4.70147939,134.39,134.22,0.5]
[1750541112183,25.50294975,134.36,134.22,0.5]
[1750541112486,0.49978519,134.37,134.24,0.5]
[1750541112664,0.49978519,134.37,134.27,0.5]
[1750541112870,0.49978519,134.37,134.36,0.5]
[1750541113254,0.49978519,134.37,134.35,6.2292]
[1750541113255,0.49978519,134.37,134.35,6.7292]
[1750541113460,0.49978519,134.37,134.36,0.5]
[1750541114201,4.70147939,134.39,134.38,0.5]
[1750541114565,4.70147939,134.39,134.27,26.06642663]
[1750541114566,6.79630021,134.5,134.36,0.5]
[1750541114773,4.1578474,134.49,134.39,8.0196]
[1750541114988,0.72,134.71,134.45,0.5]
[1750541115163,0.72,134.71,134.4,24.78294975]
[1750541115164,0.72,134.67,134.53,0.5]
[1750541115367,16.92390497,134.7,134.6,24.78294975]
[1750541115584,0.72,134.73,134.62,0.5]
[1750541115785,0.72,134.73,134.59,0.5]
[1750541115990,25.97980997,134.72,134.4,10.0]
[1750541116197,0.72,134.7,134.4,25.47294975]
[1750541116483,9.95175663,134.71,134.48,0.69]
[1750541116787,9.59529342,134.7,134.64,24.78294975]
[1750541116968,9.59529342,134.7,134.63,24.78294975]
[1750541117172,9.59529342,134.7,134.58,11.5234]
[1750541117491,9.59529342,134.7,134.63,24.78294975]
[1750541117693,9.59529342,134.7,134.58,1.5234]
[1750541118002,9.59529342,134.7,134.62,24.78294975]
[1750541118287,9.59529342,134.7,134.58,1.215438]
[1750541118288,9.59529342,134.7,134.59,36.0]
[1750541118504,9.59529342,134.7,134.66,24.78294975]
[1750541118666,9.59529342,134.7,134.6,52.00297176]
[1750541118981,10.0,134.8,134.61,0.69]
[1750541119186,24.78294975,134.75,134.65,24.78294975]
[1750541119499,27.10127813,134.83,134.61,35.47294975]
[1750541119500,17.10127813,134.83,134.61,35.47294975]
[1750541119680,17.10127813,134.83,134.73,24.78294975]
[1750541119920,24.78294975,134.81,134.66,0.69]
[1750541120095,9.68405105,134.83,134.7,0.69]
[1750541120268,7.41440709,134.88,134.7,0.69]
[1750541120473,24.78294975,134.87,134.7,0.69]
[1750541120676,7.41125027,134.93,134.82,24.78294975]
[1750541120891,10.0467599,134.94,134.84,24.78294975]
[1750541121079,10.0,134.93,134.75,48.12]
[1750541121284,10.0,134.96,134.75,45.12]
[1750541121597,10.0,134.97,134.75,42.62]
[1750541122097,10.0,134.98,134.82,24.78294975]
[1750541122270,10.0,135.01,134.82,24.78294975]
[1750541122471,10.0,134.98,134.78,18.5487461]
[1750541122699,10.0,134.98,134.75,42.62]
[1750541122862,1.6358595,135.03,134.77,7.42004897]
[1750541123068,11.6358595,135.03,134.87,0.69]
[1750541123270,1.6358595,135.03,134.98,24.78294975]
[1750541123464,11.6358595,135.03,134.86,0.69]
[1750541123769,0.30776342,134.98,134.86,0.69]
[1750541123964,0.30776342,134.98,134.97,24.78294975]
[1750541124167,0.30776342,134.98,134.88,6.5714]
[1750541124687,0.30776342,134.98,134.89,25.94706797]
[1750541124998,0.30776342,134.98,134.89,100.08154791]
[1750541125168,10.30776342,134.98,134.89,100.08154791]
[1750541125370,51.09071317,134.98,134.89,100.08154791]
[1750541125569,0.30776342,134.98,134.89,100.08154791]
[1750541125798,26.30776342,134.98,134.91,24.78294975]
[1750541125980,0.30776342,134.98,134.92,24.78294975]
[1750541126178,0.30776342,134.98,134.89,100.08154791]
[1750541126491,11.6358595,135.03,134.97,24.78294975]
[1750541126492,1.6358595,135.03,134.97,24.78294975]
[1750541126691,1.6358595,135.03,134.91,0.69]
[1750541126692,1.6358595,135.03,134.94,62.99095894]
[1750541126991,1.6358595,135.03,134.95,0.69]
[1750541126992,0.8358595,135.03,134.95,0.69]
[1750541127178,10.0,135.09,134.97,26.0]
[1750541127378,10.0,135.14,134.97,26.0]
[1750541127879,0.72,135.19,135.1,24.78294975]
[1750541127880,10.0,135.16,135.1,24.78294975]
[1750541128092,18.47845344,135.3,135.14,24.78294975]
[1750541128093,10.0,135.18,135.14,24.78294975]
[1750541128479,10.0,135.26,135.17,24.78294975]
[1750541128679,10.0,135.26,135.22,7.39535571]
[1750541128874,36.0,135.26,135.22,7.39535571]
[1750541129204,9.49361034,135.3,135.24,24.78294975]
[1750541129402,9.49361034,135.3,135.22,25.883745]
[1750541129884,9.49361034,135.3,135.29,24.78294975]
[1750541130477,10.0,135.44,135.29,24.78294975]
[1750541130677,22.926595,135.49,135.26,74.06]
[1750541130678,0.72,135.49,135.32,26.0]
[1750541130889,0.72,135.49,135.33,62.80942879]
[1750541131289,0.72,135.49,135.39,24.78294975]
[1750541131493,0.72,135.49,135.34,18.64964886]
[1750541131890,9.79263611,135.48,135.39,24.78294975]
[1750541132106,3.32340697,135.4,135.35,26.0]
[1750541132276,3.32340697,135.4,135.39,24.78294975]
[1750541132812,3.32340697,135.4,135.39,32.16901962]
[1750541132982,3.32340697,135.4,135.39,7.38606987]
[1750541133507,18.64964886,135.38,135.34,7.38879858]
[1750541133684,24.78294975,135.36,135.34,7.38879858]
[1750541133887,0.27698708,135.36,135.34,7.38879858]
[1750541134090,0.99698708,135.36,135.03,24.78294975]
[1750541134291,0.99698708,135.36,135.21,25.88565933]
[1750541134292,24.78294975,135.31,135.21,25.88565933]
[1750541134501,26.0,135.32,135.25,24.78294975]
[1750541134703,26.0,135.32,135.21,25.88565933]
[1750541134936,0.99698708,135.36,135.27,50.65712731]
[1750541135086,0.99698708,135.36,135.3,24.78294975]
[1750541135407,0.99698708,135.36,135.27,62.83728837]
[1750541135408,0.27698708,135.36,135.35,24.78294975]
[1750541135574,3.32340697,135.4,135.36,18.64964886]
[1750541135775,3.32340697,135.4,135.35,43.43259861]
[1750541135776,3.32340697,135.4,135.39,43.43259861]
[1750541135976,1.65680697,135.4,135.39,18.64964886]
[1750541136207,1.65680697,135.4,135.39,43.43259861]
[1750541136809,10.0,135.48,135.33,48.0]
[1750541136982,7.37641976,135.57,135.39,24.78294975]
[1750541136983,10.0,135.46,135.39,24.78294975]
[1750541137178,18.64964886,135.5,135.34,81.45443679]
[1750541137377,10.0,135.43,135.34,62.80478793]
[1750541137691,0.72,135.47,135.41,24.78294975]
[1750541137877,0.72,135.47,135.35,18.64964886]
[1750541137878,0.72,135.47,135.37,18.64964886]
[1750541138079,10.0,135.53,135.44,24.78294975]
[1750541138283,24.78294975,135.49,135.34,99.74878083]
[1750541138490,10.72,135.54,135.35,44.64964886]
[1750541138703,10.0,135.5,135.35,18.64964886]
[1750541139003,10.0,135.5,135.43,24.78294975]
[1750541139297,36.0,135.49,135.37,18.64964886]
[1750541139500,10.0,135.45,135.37,24.78294975]
[1750541139713,26.0,135.45,135.38,24.78294975]
[1750541140185,26.0,135.45,135.36,62.79550825]
[1750541140186,24.78294975,135.39,135.36,7.38770685]
[1750541140512,10.0,135.41,135.33,48.0]
[1750541140513,10.72,135.36,135.33,48.0]
[1750541140692,18.64964886,135.37,135.33,48.0]
[1750541140894,10.0,135.36,135.33,47.750682]
[1750541141094,0.72,135.36,135.27,24.78294975]
[1750541141278,0.22379571,135.33,135.2,73.84757396]
[1750541141484,0.22379571,135.33,135.28,24.78294975]
[1750541141679,0.22379571,135.33,135.2,73.84757396]
[1750541141902,0.22379571,135.33,135.29,24.78294975]
[1750541142103,0.90379571,135.33,135.2,73.84757396]
[1750541142304,10.0,135.29,135.2,73.84757396]
[1750541142614,18.64964886,135.32,135.21,24.78294975]
[1750541142784,18.64964886,135.32,135.2,73.84757396]
[1750541142785,24.78294975,135.26,135.2,73.84757396]
[1750541142983,18.64964886,135.32,135.2,73.84757396]
[1750541142984,18.64964886,135.32,135.21,24.78294975]
[1750541143184,18.64964886,135.32,135.24,24.78294975]
[1750541143383,18.64964886,135.32,135.2,73.84757396]
[1750541143590,26.0,135.28,135.2,55.3564497]
[1750541143814,0.24928837,135.24,135.2,55.3564497]
[1750541144301,10.24928837,135.24,135.2,55.3564497]
[1750541144488,0.24928837,135.24,135.2,80.13939945]
[1750541144991,0.24928837,135.24,135.22,24.78294975]
[1750541145501,0.24928837,135.24,135.2,73.84757396]
[1750541145715,0.24928837,135.24,135.23,24.78294975]
[1750541146298,0.24928837,135.24,135.2,73.84757396]
[1750541146811,0.24928837,135.24,135.23,24.78294975]
[1750541147007,0.24928837,135.24,135.23,32.17775859]
[1750541147310,0.24928837,135.24,135.2,55.35593258]
[1750541147515,25.03223812,135.24,135.2,55.35593258]
[1750541147720,0.24928837,135.24,135.23,24.78294975]
[1750541148097,10.0,135.33,135.24,18.64964886]
[1750541148300,10.0,135.37,135.3,24.78294975]
[1750541148503,10.0,135.37,135.21,18.64964886]
[1750541148504,10.0,135.32,135.21,18.64964886]
[1750541148703,10.0,135.27,135.2,73.84705684]
[1750541149012,24.78294975,135.25,135.2,73.84705684]
[1750541149209,10.0,135.27,135.2,73.84705684]
[1750541149411,24.78294975,135.27,135.22,24.78294975]
[1750541149606,24.78294975,135.28,135.2,73.84705684]
[1750541149978,10.0,135.34,135.26,24.78294975]
[1750541150104,24.78294975,135.31,135.21,18.64964886]
[1750541150300,10.0,135.3,135.24,24.78294975]
[1750541150509,10.0,135.31,135.25,24.78294975]
[1750541150721,10.0,135.3,135.25,24.78294975]
[1750541150924,10.0,135.32,135.26,7.39316871]
[1750541151104,26.0,135.33,135.26,7.39316871]
[1750541151105,10.0,135.3,135.26,7.39316871]
[1750541151306,10.0,135.32,135.26,7.39316871]
[1750541151499,10.0,135.32,135.27,24.78294975]
[1750541151500,34.78294975,135.32,135.27,24.78294975]
[1750541151705,10.0,135.34,135.27,24.78294975]
[1750541151922,0.68,135.35,135.26,25.87609049]
[1750541151923,10.0,135.32,135.28,24.78294975]
[1750541152227,34.78294975,135.32,135.26,25.87609049]
[1750541152523,34.78294975,135.32,135.27,24.78294975]
[1750541152731,24.78294975,135.32,135.27,24.78294975]
[1750541152913,34.78294975,135.32,135.28,7.39207569]
[1750541153318,10.0,135.37,135.28,50.65521467]
[1750541153636,50.78294975,135.34,135.28,50.65521467]
[1750541153865,10.0,135.34,135.28,50.43085514]
[1750541154015,10.0,135.37,135.28,50.43085514]
[1750541154221,10.0,135.32,135.28,50.43085514]
[1750541154644,34.78294975,135.32,135.28,25.64790539]
[1750541154855,26.0,135.35,135.21,77.84964886]
[1750541154856,24.78294975,135.29,135.23,24.78294975]
[1750541155028,24.78294975,135.28,135.23,24.78294975]
[1750541155233,26.0,135.35,135.22,25.883745]
[1750541155234,10.0,135.3,135.24,24.78294975]
[1750541155550,34.78294975,135.31,135.25,24.78294975]
[1750541155849,10.0,135.31,135.25,24.78294975]
[1750541156247,10.0,135.31,135.22,62.86052358]
[1750541156248,10.0,135.32,135.22,62.86052358]
[1750541156467,24.78294975,135.31,135.22,62.86052358]
[1750541156626,24.78294975,135.31,135.26,24.78294975]
[1750541156951,26.0,135.34,135.27,24.78294975]
[1750541157147,36.0,135.34,135.28,7.39207569]
[1750541157353,36.0,135.34,135.28,25.87226492]
[1750541157659,24.78294975,135.32,135.28,25.87226492]
[1750541157864,24.78294975,135.32,135.28,25.65031315]
[1750541158225,10.0,135.35,135.28,25.65031315]
[1750541158421,10.0,135.35,135.2,47.96]
[1750541158422,24.78294975,135.29,135.21,24.78294975]
[1750541158631,0.68,135.3,135.22,24.78294975]
[1750541158831,0.68,135.3,135.13,133.2028121]
[1750541158832,26.0,135.32,135.27,24.78294975]
[1750541159060,36.0,135.34,135.29,24.78294975]
[1750541159239,26.0,135.34,135.29,24.78294975]
[1750541159559,10.0,135.38,135.31,24.78294975]
[1750541159771,10.0,135.35,135.32,24.78294975]
[1750541160053,10.0,135.35,135.27,47.94]
[1750541160054,10.0,135.38,135.28,18.64964886]
[1750541160268,10.0,135.43,135.37,24.78294975]
[1750541160433,10.0,135.43,135.28,18.64964886]
[1750541160434,10.0,135.43,135.38,24.78294975]
[1750541160632,10.0,135.54,135.27,133.14]
[1750541160633,10.0,135.47,135.42,24.78294975]
[1750541160832,24.78294975,135.5,135.37,18.64964886]
[1750541161139,10.0,135.51,135.46,7.38225306]
[1750541161343,34.78294975,135.51,135.46,7.38225306]
[1750541161658,10.0,135.5,135.46,7.38225306]
[1750541161839,10.0,135.5,135.47,24.78294975]
[1750541162155,11.6358595,135.58,135.49,24.78294975]
[1750541162335,11.6358595,135.58,135.55,24.78294975]
[1750541162336,1.6358595,135.58,135.55,24.78294975]
[1750541162653,1.6358595,135.58,135.49,44.64964886]
[1750541162859,1.6358595,135.58,135.53,26.0]
[1750541163062,1.6358595,135.58,135.57,32.15921293]
[1750541163665,1.6358595,135.58,135.46,18.64964886]
[1750541163875,0.22148815,135.57,135.46,37.10528151]
[1750541164033,0.22148815,135.57,135.48,24.78294975]
[1750541164034,36.0,135.56,135.48,24.78294975]
[1750541164236,34.78294975,135.51,135.46,18.45563265]
[1750541164461,10.0,135.54,135.46,18.45563265]
[1750541164661,26.0,135.56,135.49,24.78294975]
[1750541164863,0.22148815,135.57,135.47,18.64964886]
[1750541165074,0.68,135.46,135.33,3.68054261]
[1750541165373,10.0,135.38,135.27,7.39262216]
[1750541165532,10.0,135.3,135.27,7.39262216]
[1750541165955,26.0,135.35,135.26,47.92]
[1750541165956,10.0,135.27,135.26,47.92]
[1750541166358,34.78294975,135.27,135.26,47.92]
[1750541166558,10.0,135.32,135.26,55.31316871]
[1750541166762,10.0,135.39,135.27,24.78294975]
[1750541166973,0.68,135.41,135.29,26.0]
[1750541167148,24.78294975,135.41,135.33,7.38934456]
[1750541167345,26.29854975,135.43,135.33,7.38934456]
[1750541167647,10.0,135.46,135.38,24.78294975]
[1750541167829,0.68,135.47,135.39,24.78294975]
[1750541168034,10.0,135.42,135.34,18.64964886]
[1750541168234,10.0,135.39,135.3,24.78294975]
[1750541168457,7.38192279,135.47,135.26,72.70294975]
[1750541168458,10.0,135.34,135.26,72.70294975]
[1750541168763,10.0,135.36,135.29,24.78294975]
[1750541168975,10.0,135.37,135.27,7.39262216]
[1750541169275,0.68,135.39,135.28,18.64964886]
[1750541169432,10.0,135.42,135.34,24.78294975]
[1750541169634,10.0,135.47,135.41,24.78294975]
[1750541169841,10.0,135.5,135.36,26.0]
[1750541170045,10.0,135.5,135.45,24.78294975]
[1750541170362,7.37732132,135.56,135.43,18.64964886]
[1750541170363,10.0,135.54,135.43,18.64964886]
[1750541170544,10.0,135.54,135.48,24.78294975]
[1750541170749,10.0,135.55,135.5,24.78294975]
[1750541171056,2.3158595,135.58,135.45,18.64964886]
[1750541171057,0.22165554,135.48,135.45,18.64964886]
[1750541171265,0.22165554,135.48,135.44,25.84170111]
[1750541171583,10.22165554,135.48,135.44,7.38334317]
[1750541171873,0.22165554,135.48,135.44,7.38334317]
[1750541172072,0.22165554,135.48,135.45,24.78294975]
[1750541172371,0.22165554,135.48,135.44,25.84170111]
[1750541172372,0.22165554,135.48,135.46,24.78294975]
[1750541172733,0.22165554,135.48,135.47,24.78294975]
[1750541173149,0.22165554,135.48,135.44,25.84170111]
[1750541173350,0.22165554,135.48,135.44,50.62465086]
[1750541173639,24.78294975,135.45,135.42,55.28395155]
[1750541173843,10.22165554,135.48,135.42,55.28395155]
[1750541174040,10.0,135.45,135.42,55.28395155]
[1750541174242,24.78294975,135.46,135.42,55.28395155]
[1750541174443,0.22165554,135.48,135.42,55.28395155]
[1750541174641,10.0,135.47,135.42,55.28395155]
[1750541174855,10.22165554,135.48,135.42,80.0669013]
[1750541175070,34.78294975,135.43,135.42,55.28443361]
[1750541175278,10.0,135.43,135.42,47.9]
[1750541176241,35.52294975,135.43,135.42,47.4]
[1750541176442,10.0,135.38,135.32,24.78294975]
[1750541176660,10.0,135.37,135.33,24.78294975]
[1750541176854,26.0,135.4,135.33,24.78294975]
[1750541177163,10.0,135.4,135.34,32.17174833]
[1750541177482,10.0,135.4,135.35,24.78294975]
[1750541177657,10.0,135.39,135.35,24.78294975]
[1750541177859,0.74,135.43,135.36,24.78294975]
[1750541177860,10.0,135.37,135.36,24.78294975]
[1750541178068,10.0,135.38,135.34,25.86079503]
[1750541178243,10.0,135.36,135.34,25.86079503]
[1750541178565,10.0,135.37,135.34,25.86079503]
[1750541178777,24.78294975,135.38,135.34,25.86079503]
[1750541179066,24.78294975,135.38,135.3,50.65008657]
[1750541179067,24.78294975,135.35,135.3,50.65008657]
[1750541179366,26.74,135.43,135.3,7.390983]
[1750541179367,10.0,135.32,135.3,7.390983]
[1750541179572,10.0,135.31,135.3,7.390983]
[1750541179879,10.0,135.32,135.29,55.27133959]
[1750541180174,24.78294975,135.3,135.29,47.88]
[1750541180343,10.0,135.3,135.29,55.2715293]
[1750541180543,10.0,135.31,135.29,55.2715293]
[1750541180744,10.0,135.34,135.29,55.2715293]
[1750541180983,10.0,135.31,135.29,55.2715293]
[1750541181475,10.0,135.32,135.29,80.05447905]
[1750541181784,10.0,135.31,135.29,80.05447905]
[1750541181957,10.0,135.34,135.29,55.2715293]
[1750541182350,10.0,135.31,135.29,55.2715293]
[1750541182577,10.0,135.32,135.29,55.2715293]
[1750541182780,10.0,135.32,135.29,47.88]
[1750541182781,10.0,135.3,135.29,47.88]
[1750541182951,34.78294975,135.3,135.29,55.2715293]
[1750541183145,10.0,135.3,135.29,55.2715293]
[1750541183350,10.0,135.32,135.29,55.2715293]
[1750541183569,10.0,135.32,135.29,80.05447905]
[1750541183785,34.78294975,135.35,135.29,73.75035256]
[1750541184001,10.0,135.34,135.29,73.52845579]
[1750541184289,10.0,135.36,135.29,73.52845579]
[1750541184478,10.0,135.35,135.32,24.78294975]
[1750541184647,10.0,135.35,135.33,24.78294975]
[1750541184853,10.0,135.36,135.33,24.78294975]
[1750541185054,10.0,135.35,135.33,24.78294975]
[1750541185253,10.0,135.35,135.33,7.38934456]
[1750541185494,10.0,135.35,135.33,25.86270597]
[1750541185776,24.78294975,135.34,135.29,47.65810323]
[1750541185964,10.0,135.32,135.3,7.390983]
[1750541186482,7.38646935,135.39,135.3,7.390983]
[1750541186483,10.0,135.39,135.31,24.78294975]
[1750541186657,0.74,135.46,135.32,18.64964886]
[1750541186658,10.0,135.4,135.32,18.64964886]
[1750541186859,24.78294975,135.4,135.3,51.8684405]
[1750541187060,10.0,135.39,135.31,18.64964886]
[1750541187264,24.78294975,135.39,135.32,25.86461719]
[1750541187464,34.78294975,135.39,135.34,24.78294975]
[1750541187683,10.0,135.4,135.32,25.86461719]
[1750541187874,10.0,135.41,135.37,24.5611445]
[1750541188071,10.0,135.4,135.36,24.78294975]
[1750541188461,10.0,135.41,135.37,24.78294975]
[1750541188662,10.0,135.43,135.37,24.78294975]
[1750541188865,10.0,135.41,135.39,24.78294975]
[1750541189068,10.0,135.42,135.38,24.78294975]
[1750541189380,10.0,135.44,135.42,7.38443361]
[1750541189559,10.0,135.45,135.42,32.16738336]
[1750541189880,10.0,135.43,135.42,7.38443361]
[1750541190083,10.0,135.44,135.42,32.16738336]
[1750541190265,10.0,135.5,135.43,24.78294975]
[1750541190587,18.4386346,135.59,135.49,24.78294975]
[1750541190588,10.0,135.52,135.49,24.78294975]
[1750541190877,10.0,135.51,135.42,88.7676857]
[1750541191305,10.0,135.49,135.42,88.7676857]
[1750541191460,26.0,135.55,135.48,24.78294975]
[1750541191461,10.0,135.52,135.48,24.78294975]
[1750541191662,10.0,135.53,135.49,24.78294975]
[1750541191866,10.0,135.53,135.42,107.41733456]
[1750541191867,10.0,135.54,135.51,24.78294975]
[1750541192061,10.0,135.55,135.51,24.78294975]
[1750541192283,10.0,135.56,135.46,18.64964886]
[1750541192475,10.0,135.55,135.52,24.78294975]
[1750541192680,8.5,135.56,135.53,24.78294975]
[1750541192880,8.5,135.54,135.52,24.78294975]
[1750541193078,8.5,135.54,135.45,107.04]
[1750541193079,24.78294975,135.56,135.45,47.9]
[1750541193293,8.5,135.57,135.47,25.83597843]
[1750541193294,8.5,135.51,135.47,25.83597843]
[1750541193480,8.5,135.51,135.48,24.78294975]
[1750541194573,24.78294975,135.53,135.48,24.78294975]
[1750541194780,8.5,135.51,135.48,24.78294975]
[1750541195090,24.78294975,135.51,135.47,7.38170812]
[1750541195395,8.5,135.47,135.45,47.9]
[1750541195577,8.5,135.46,135.45,55.28279808]
[1750541195777,24.78294975,135.47,135.45,55.28279808]
[1750541195976,8.5,135.46,135.45,55.28279808]
[1750541196486,8.5,135.48,135.45,55.28279808]
[1750541196699,8.5,135.46,135.45,55.28279808]
[1750541197200,8.5,135.51,135.45,80.06574783]
[1750541197367,8.5,135.52,135.48,24.78294975]
[1750541197569,8.5,135.52,135.45,73.73979328]
[1750541197786,33.28294975,135.52,135.48,24.78294975]
[1750541197976,8.5,135.5,135.48,24.78294975]
[1750541198182,0.74,135.55,135.48,24.78294975]
[1750541198183,8.5,135.52,135.48,24.78294975]
[1750541198396,8.5,135.52,135.45,73.73979328]
[1750541198578,8.5,135.52,135.48,24.78294975]
[1750541199286,8.5,135.52,135.49,24.78294975]
[1750541199487,8.5,135.52,135.5,7.3800738]
[1750541199690,8.5,135.53,135.5,7.3800738]
[1750541199990,8.5,135.55,135.5,25.8302583]
[1750541200176,1.6358595,135.58,135.5,25.8302583]
[1750541200177,8.5,135.52,135.5,25.8302583]
[1750541200371,8.5,135.52,135.5,7.3800738]
[1750541200707,33.28294975,135.52,135.5,7.3800738]
[1750541200881,23.67337166,135.51,135.5,7.3800738]
[1750541201072,8.5,135.48,135.46,7.38225306]
[1750541201485,8.5,135.48,135.46,31.05562472]
[1750541201994,8.5,135.5,135.46,49.51125737]
[1750541202198,8.5,135.47,135.46,7.38225306]
[1750541202685,32.17337166,135.48,135.45,47.9]
[1750541202894,8.5,135.46,135.45,47.9]
[1750541203281,23.67337166,135.47,135.45,47.9]
[1750541203487,32.17337166,135.46,135.45,47.9]
[1750541203686,8.5,135.46,135.45,47.9]
[1750541203888,32.17337166,135.46,135.45,47.67829251]
[1750541204410,9.24,135.46,135.45,47.67829251]
[1750541205295,32.91337166,135.46,135.45,47.67829251]
[1750541205501,9.24,135.46,135.45,47.67829251]
[1750541205883,32.91337166,135.46,135.45,47.67829251]
[1750541206795,8.5,135.46,135.45,47.67829251]
[1750541207197,8.5,135.46,135.45,55.06109059]
[1750541207407,8.5,135.48,135.45,55.06109059]
[1750541207615,20.07608966,135.58,135.47,23.67337166]
[1750541207616,8.5,135.5,135.47,23.67337166]
[1750541207786,8.5,135.51,135.49,23.67337166]
[1750541207987,32.17337166,135.54,135.49,23.67337166]
[1750541208186,32.17337166,135.53,135.46,18.64964886]
[1750541208496,8.5,135.52,135.49,23.67337166]
[1750541208698,23.67337166,135.54,135.5,23.67337166]
[1750541208699,8.5,135.54,135.5,23.67337166]
[1750541209208,8.5,135.55,135.5,23.67337166]
[1750541209506,8.5,135.55,135.52,7.37898465]
[1750541209930,8.5,135.55,135.53,23.67337166]
[1750541210075,8.5,135.55,135.52,7.37898465]
[1750541210076,10.1358595,135.58,135.54,23.67337166]
[1750541210279,8.5,135.57,135.52,25.82644627]
[1750541210480,8.5,135.55,135.52,7.37898465]
[1750541210706,8.5,135.56,135.52,31.05235631]
[1750541210902,1.6358595,135.58,135.55,23.67337166]
[1750541211084,1.6358595,135.58,135.52,25.82644627]
[1750541211085,8.5,135.56,135.52,25.82644627]
[1750541211276,8.5,135.54,135.52,7.37898465]
[1750541211483,8.5,135.54,135.51,7.37952918]
[1750541212805,8.5,135.53,135.51,7.37952918]
[1750541212984,8.5,135.54,135.51,7.37952918]
[1750541213181,23.67337166,135.55,135.51,7.37952918]
[1750541213182,8.5,135.53,135.51,7.37952918]
[1750541214030,8.5,135.54,135.51,7.15797981]
[1750541214320,8.5,135.53,135.52,23.67337166]
[1750541214526,8.5,135.54,135.52,23.67337166]
[1750541214728,8.5,135.54,135.53,23.67337166]
[1750541214929,8.5,135.54,135.51,25.60680277]
[1750541215094,8.5,135.54,135.51,49.28017443]
[1750541215291,8.5,135.54,135.52,23.67337166]
[1750541215496,8.5,135.54,135.51,30.83135147]
[1750541216034,8.5,135.54,135.53,23.67337166]
[1750541216232,10.1358595,135.58,135.53,23.67337166]